bitfinex-derivatives/quotes_BTCF0:USTF0_20250212
["timestamp","ask_amount","ask_price","bid_price","bid_amount"]
[1739392593902,0.2055945,97274.0,97273.0,0.3658]
[1739392594601,0.2065945,97274.0,97273.0,0.3628]
[1739392595301,0.2056157,97264.0,97263.0,0.3608]
[1739392596500,0.205625,97260.0,97257.0,0.205629]
[1739392596999,0.2056267,97259.0,97257.0,0.205629]
[1739392597601,0.001,97264.0,97253.0,0.3608]
[1739392597895,0.2056368,97254.0,97253.0,0.3608]
[1739392599298,0.2056368,97254.0,97253.0,0.002]
[1739392599598,0.19954447,97263.0,97242.0,0.3608]
[1739392599599,0.2056601,97243.0,97242.0,0.3608]
[1739392600204,0.48336447,97260.0,97245.0,0.2056553]
[1739392600390,0.2056368,97254.0,97253.0,0.002]
[1739392600595,0.205618,97263.0,97259.0,0.2056244]
[1739392600796,0.205618,97263.0,97262.0,0.3608]
[1739392601890,0.208618,97263.0,97262.0,0.3608]
[1739392602695,0.210618,97263.0,97262.0,0.3608]
[1739392603199,0.211618,97263.0,97262.0,0.3608]
[1739392605399,0.2056199,97262.0,97261.0,0.2056213]
[1739392606099,0.2056199,97262.0,97261.0,0.5664213]
[1739392606501,0.2066199,97262.0,97261.0,0.5664213]
[1739392606701,0.001,97262.0,97261.0,0.5664213]
[1739392607301,0.005,97262.0,97261.0,0.5664213]
[1739392608999,0.00015422,97268.0,97267.0,0.2056093]
[1739392610410,0.00015422,97268.0,97267.0,0.2066093]
[1739392610909,0.00015422,97268.0,97267.0,0.2056093]
[1739392611205,0.00015422,97268.0,97267.0,0.2106093]
[1739392612902,0.00015422,97268.0,97267.0,0.2096093]
[1739392613816,0.00015422,97268.0,97267.0,0.2106093]
[1739392614005,0.00015422,97268.0,97267.0,0.2076093]
[1739392614405,0.00015422,97268.0,97267.0,0.2086093]
[1739392614808,0.00015422,97268.0,97267.0,0.2096093]
[1739392615907,0.00015422,97268.0,97267.0,0.2106093]
[1739392616505,0.00015422,97268.0,97267.0,0.2096093]
[1739392616909,0.00015422,97268.0,97267.0,0.2086093]
[1739392617607,0.00015422,97268.0,97267.0,0.2066093]
[1739392618505,0.00015422,97268.0,97267.0,0.2076093]
[1739392619110,0.20576142,97268.0,97267.0,0.001]
[1739392619309,0.60636142,97268.0,97267.0,0.002]
[1739392619609,0.0514028,97266.0,97249.0,0.2056465]
[1739392619812,0.2046368,97254.0,97247.0,0.0015423]
[1739392620612,0.2056643,97241.0,97240.0,0.3608]
[1739392621021,0.2036643,97241.0,97240.0,0.3608]
[1739392621209,0.2016643,97241.0,97240.0,0.3608]
[1739392622111,0.2026643,97241.0,97240.0,0.3728]
[1739392622510,0.2026643,97241.0,97240.0,0.3778]
[1739392623104,0.2026643,97241.0,97240.0,0.3738]
[1739392623826,0.2016643,97241.0,97240.0,0.3628]
[1739392624704,0.01016672,97246.0,97240.0,0.3628]
[1739392624909,0.0407,97249.0,97240.0,0.3628]
[1739392625410,0.2056585,97244.0,97240.0,0.5684661]
[1739392625610,0.0407,97249.0,97240.0,0.5684661]
[1739392625812,0.2056626,97242.0,97240.0,0.5684661]
[1739392627319,0.2056626,97242.0,97241.0,0.2056643]
[1739392627617,0.05109492,97249.0,97240.0,0.3628]
[1739392627809,0.2056518,97247.0,97244.0,0.2056572]
[1739392628320,0.05109492,97249.0,97244.0,0.2056572]
[1739392628521,0.05109492,97249.0,97240.0,0.3618]
[1739392628522,0.2056643,97241.0,97240.0,0.3618]
[1739392628918,0.2056643,97241.0,97240.0,0.001]
[1739392629115,0.2056791,97234.0,97233.0,0.3608]
[1739392629318,0.12164447,97243.0,97220.0,0.00214257]
[1739392629614,0.2057066,97222.0,97221.0,0.2057064]
[1739392630821,0.2057066,97222.0,97221.0,0.2077064]
[1739392631411,0.2057066,97222.0,97221.0,0.002]
[1739392633015,0.2057066,97222.0,97221.0,0.006]
[1739392633417,0.205749,97201.0,97200.0,0.1]
[1739392634509,0.206749,97201.0,97200.0,0.115]
[1739392635514,0.207749,97201.0,97200.0,0.122]
[1739392636325,0.207749,97201.0,97200.0,0.121]
[1739392639510,0.21789181,97201.0,97200.0,0.121]
[1739392639813,0.002,97201.0,97200.0,0.121]
[1739392640817,0.002,97201.0,97200.0,1.621]
[1739392643816,0.0001543,97210.0,97209.0,0.2057321]
[1739392644016,0.0099715,97223.0,97221.0,0.2057061]
[1739392644219,0.2056929,97228.0,97222.0,0.3608]
[1739392644426,0.2056929,97228.0,97224.0,0.2056996]
[1739392644819,0.21562279,97228.0,97224.0,0.2056996]
[1739392645527,0.21562279,97228.0,97222.0,0.3608]
[1739392645727,0.21662279,97228.0,97226.0,0.2056954]
[1739392646027,0.2066929,97228.0,97226.0,0.2056954]
[1739392646331,0.2096929,97228.0,97226.0,0.2056954]
[1739392646527,0.004,97228.0,97226.0,0.2056954]
[1739392647024,0.001,97228.0,97226.0,0.2056954]
[1739392647229,0.005,97228.0,97226.0,0.2056954]
[1739392647625,0.2106921,97228.0,97226.0,0.2056954]
[1739392647834,0.005,97228.0,97222.0,0.3608]
[1739392648129,0.2056998,97225.0,97222.0,0.3608]
[1739392649031,0.2056998,97225.0,97223.0,0.2057024]
[1739392649624,0.2066998,97225.0,97223.0,0.2057024]
[1739392650334,0.2056998,97225.0,97223.0,0.2057024]
[1739392650535,0.2076998,97225.0,97223.0,0.2057024]
[1739392651936,0.2057003,97224.0,97223.0,0.2057024]
[1739392653135,0.2077003,97224.0,97223.0,0.2057024]
[1739392653336,0.002,97224.0,97223.0,0.2057024]
[1739392656728,0.002,97224.0,97216.0,0.0001543]
[1739392656939,0.5665151,97217.0,97216.0,0.0001543]
[1739392657739,0.2057448,97203.0,97202.0,0.3608]
[1739392658131,0.2007448,97203.0,97202.0,0.3608]
[1739392658840,0.1987448,97203.0,97202.0,0.3608]
[1739392659338,0.2007448,97203.0,97202.0,0.3818]
[1739392661528,0.1997448,97203.0,97202.0,0.3788]
[1739392661734,0.2007448,97203.0,97202.0,0.3788]
[1739392662145,0.21107746,97203.0,97202.0,0.3788]
[1739392664145,0.21107746,97203.0,97202.0,0.018]
[1739392666146,0.21101603,97203.0,97202.0,0.018]
[1739392669441,0.002,97203.0,97202.0,0.018]
[1739392669641,0.002,97203.0,97202.0,0.2237469]
[1739392670149,0.002,97203.0,97202.0,1.7237469]
[1739392670636,0.0001543,97212.0,97202.0,1.518]
[1739392670838,0.0001543,97212.0,97211.0,0.5665278]
[1739392672043,0.0001543,97212.0,97211.0,0.5695278]
[1739392673446,0.0011543,97212.0,97211.0,0.5695278]
[1739392673647,0.2068801,97212.0,97211.0,0.5695278]
[1739392674147,0.2058801,97212.0,97211.0,0.5695278]
[1739392674451,0.2068801,97212.0,97211.0,0.5755278]
[1739392674947,0.2068801,97212.0,97211.0,0.2147278]
[1739392676947,0.2068801,97212.0,97211.0,0.009]
[1739392683054,0.2068801,97212.0,97211.0,0.2147279]
[1739392683840,0.2068801,97212.0,97211.0,0.009]
[1739392686752,0.2057491,97201.0,97200.0,0.1]
[1739392687153,0.2057851,97184.0,97183.0,0.2057862]
[1739392688253,0.0514392,97198.0,97187.0,0.2057777]
[1739392688550,0.16084447,97200.0,97182.0,0.3608]
[1739392688551,0.2057681,97193.0,97188.0,0.2057766]
[1739392689049,0.2057681,97193.0,97192.0,0.2057682]
[1739392689552,0.1927681,97193.0,97192.0,0.2057682]
[1739392690254,0.1937681,97193.0,97192.0,0.2137682]
[1739392690762,0.001,97193.0,97192.0,0.2137682]
[1739392690950,0.002,97193.0,97192.0,0.2137682]
[1739392692448,0.002,97193.0,97192.0,1.7137682]
[1739392696253,0.002,97193.0,97192.0,0.2137682]
[1739392696758,0.002,97193.0,97192.0,1.7137682]
[1739392698554,0.2057324,97209.0,97208.0,0.2057332]
[1739392698755,0.2057324,97209.0,97208.0,0.5665332]
[1739392700154,0.2067324,97209.0,97208.0,0.5685332]
[1739392700352,0.2067324,97209.0,97208.0,0.3628]
[1739392702363,0.2067324,97209.0,97208.0,0.002]
[1739392704560,0.2067324,97209.0,97208.0,0.2077343]
[1739392704766,0.2067324,97209.0,97208.0,0.5685343]
[1739392705656,0.001,97209.0,97208.0,0.5685343]
[1739392709468,0.2067322,97209.0,97208.0,0.3628]
[1739392710155,0.2067322,97209.0,97208.0,0.002]
[1739392711370,0.5675322,97209.0,97208.0,0.002]
[1739392711564,0.2057512,97200.0,97199.0,0.36763608]
[1739392712460,0.2057753,97189.0,97187.0,0.5665767]
[1739392712862,0.2027753,97189.0,97187.0,0.5665767]
[1739392713467,0.2027753,97189.0,97187.0,0.5695767]
[1739392713665,0.2037753,97189.0,97187.0,0.5695767]
[1739392714273,0.2047753,97189.0,97187.0,0.5695767]
[1739392715066,0.002,97189.0,97188.0,0.2057766]
[1739392716074,0.001,97189.0,97188.0,0.2057766]
[1739392716273,0.003,97189.0,97188.0,0.2057766]
[1739392718172,0.003,97189.0,97188.0,1.7057766]
[1739392720770,0.2087745,97189.0,97188.0,1.7057766]
[1739392721381,0.2087745,97189.0,97188.0,0.2057766]
[1739392721767,0.003,97189.0,97187.0,0.72212]
[1739392722078,0.2057766,97188.0,97187.0,0.7216]
[1739392723773,0.2867766,97188.0,97187.0,0.7216]
[1739392724577,0.2887766,97188.0,97187.0,0.7216]
[1739392724972,0.2897766,97188.0,97187.0,0.7216]
[1739392725170,0.6485766,97188.0,97167.0,0.00052]
[1739392725376,0.2058486,97154.0,97150.0,0.4315272]
[1739392725577,0.3608,97156.0,97150.0,0.4315272]
[1739392725872,0.2058465,97155.0,97150.0,0.4315272]
[1739392726782,0.001,97154.0,97150.0,0.4315272]
[1739392727280,0.2068465,97155.0,97150.0,0.4315272]
[1739392727480,0.2058486,97154.0,97152.0,0.4315272]
[1739392728179,0.3608,97153.0,97152.0,0.4315272]
[1739392729390,0.3748,97153.0,97152.0,0.4315272]
[1739392730085,0.9414508,97153.0,97152.0,0.4315272]
[1739392730478,0.9464508,97153.0,97152.0,0.4315272]
[1739392730977,0.9474508,97153.0,97152.0,0.4315272]
[1739392731180,0.9334508,97153.0,97152.0,0.4315272]
[1739392731386,0.9474508,97153.0,97152.0,0.4315272]
[1739392732986,0.9474508,97153.0,97134.0,0.46085087]
[1739392732987,0.7416,97153.0,97134.0,0.0818]
[1739392733287,0.2058677,97145.0,97144.0,0.2058671]
[1739392733788,0.3808,97153.0,97136.0,0.3608]
[1739392733979,0.3748,97153.0,97152.0,0.2058529]
[1739392734181,0.3608,97153.0,97152.0,0.2058529]
[1739392734381,0.3658,97153.0,97152.0,0.2058529]
[1739392734579,0.3658,97153.0,97152.0,1.7058529]
[1739392734777,0.3658,97153.0,97152.0,0.2058529]
[1739392735991,0.005,97153.0,97152.0,0.2058529]
[1739392736182,0.006,97153.0,97152.0,0.2058529]
[1739392736685,0.005,97153.0,97152.0,0.2058529]
[1739392737897,0.2058362,97160.0,97159.0,0.205838]
[1739392738095,0.01037053,97163.0,97161.0,0.2058335]
[1739392738296,0.00015439,97164.0,97161.0,0.2058335]
[1739392738593,0.20598299,97164.0,97161.0,0.2058335]
[1739392738798,0.20598299,97164.0,97162.0,0.2058317]
[1739392739385,0.20998299,97164.0,97162.0,0.2058317]
[1739392739596,0.2058296,97163.0,97162.0,0.2058317]
[1739392741895,0.2118296,97163.0,97162.0,0.2058317]
[1739392742292,0.2058411,97158.0,97157.0,0.2058409]
[1739392744898,0.2098411,97158.0,97157.0,0.2058409]
[1739392745302,0.004,97158.0,97157.0,0.2058409]
[1739392747002,0.005,97158.0,97154.0,0.0514621]
[1739392747707,0.01037898,97164.0,97163.0,0.2058296]
[1739392747890,0.21620648,97164.0,97163.0,0.2058296]
[1739392748206,0.01037898,97164.0,97153.0,0.0776]
[1739392748395,0.2058591,97150.0,97134.0,0.3608]
[1739392748802,0.3608,97154.0,97135.0,1.5]
[1739392749002,0.3608,97142.0,97125.0,0.3608]
[1739392749202,0.2058888,97136.0,97124.0,0.36791384]
[1739392749402,0.2058891,97135.0,97130.0,0.2058987]
[1739392749710,0.2058891,97135.0,97131.0,0.2058972]
[1739392750206,0.2058911,97134.0,97131.0,0.2058972]
[1739392750399,0.2048911,97134.0,97132.0,0.205895]
[1739392750804,0.3608,97134.0,97124.0,0.36791384]
[1739392750999,0.2058992,97131.0,97127.0,0.2059055]
[1739392751204,0.2038992,97131.0,97127.0,0.2059055]
[1739392751404,0.3608,97134.0,97124.0,0.36791384]
[1739392751610,0.3618,97134.0,97124.0,0.36791384]
[1739392751803,0.3638,97134.0,97124.0,0.36991384]
[1739392752316,0.003,97134.0,97133.0,0.2058931]
[1739392753413,0.3608,97154.0,97142.0,0.2058743]
[1739392753715,0.01029399,97149.0,97142.0,0.2058743]
[1739392754021,0.01029399,97149.0,97142.0,1.7058743]
[1739392754807,0.2058581,97150.0,97142.0,1.7058743]
[1739392755206,0.2058581,97150.0,97142.0,0.2058743]
[1739392755412,0.3608,97154.0,97142.0,0.2058743]
[1739392755611,0.01025726,97150.0,97142.0,0.2058743]
[1739392755807,0.2058839,97138.0,97136.0,0.2058863]
[1739392756002,0.5666863,97137.0,97135.0,0.00052]
[1739392756208,0.2058863,97137.0,97124.0,0.0384]
[1739392756510,0.36595439,97143.0,97134.0,0.2058908]
[1739392756717,0.205875,97142.0,97134.0,0.2058908]
[1739392756916,0.205875,97142.0,97135.0,0.2058885]
[1739392757102,0.205875,97142.0,97140.0,0.2058782]
[1739392757304,0.37139978,97143.0,97130.0,0.4297398]
[1739392757512,0.36095439,97143.0,97141.0,0.2058756]
[1739392758115,0.003,97142.0,97141.0,0.2058756]
[1739392759515,0.00015439,97143.0,97141.0,0.2058756]
[1739392759721,0.00315439,97143.0,97141.0,0.2058756]
[1739392760018,0.00415439,97143.0,97141.0,0.2058756]
[1739392760514,0.00415439,97143.0,97130.0,0.12164447]
[1739392760515,0.00315439,97143.0,97142.0,0.2058743]
[1739392761018,0.00015439,97143.0,97142.0,0.2058743]
[1739392762414,0.2058766,97141.0,97137.0,0.2058835]
[1739392762715,0.2048766,97141.0,97137.0,0.2058835]
[1739392763112,0.2058799,97140.0,97137.0,0.2058835]
[1739392763317,0.00115439,97143.0,97137.0,0.2058835]
[1739392763817,0.00015439,97143.0,97137.0,0.2058835]
[1739392764016,0.2058827,97138.0,97137.0,0.2058835]
[1739392765320,0.2058898,97135.0,97133.0,0.2058931]
[1739392765519,0.0771,97134.0,97133.0,0.2058931]
[1739392765721,0.2829912,97134.0,97133.0,0.2058931]
[1739392767222,0.2899912,97134.0,97133.0,0.2058931]
[1739392767522,0.2909912,97134.0,97133.0,0.2058931]
[1739392768907,0.0851,97134.0,97133.0,0.2058931]
[1739392769322,0.0781,97134.0,97133.0,0.2058931]
[1739392769520,0.0861,97134.0,97133.0,0.2058931]
[1739392770023,0.009,97134.0,97133.0,0.2058931]
[1739392770209,0.008,97134.0,97133.0,0.2058931]
[1739392770719,0.008,97134.0,97133.0,1.7058931]
[1739392770915,0.007,97134.0,97133.0,1.7058931]
[1739392771312,0.006,97134.0,97133.0,1.7058931]
[1739392771508,0.00015439,97143.0,97133.0,1.7058931]
[1739392771509,0.00015439,97143.0,97142.0,0.2058743]
[1739392771721,0.00015439,97143.0,97142.0,0.5666743]
[1739392772823,0.01315439,97143.0,97142.0,0.5666743]
[1739392773022,0.01615439,97143.0,97142.0,0.5666743]
[1739392776121,0.00315439,97143.0,97142.0,0.5666743]
[1739392776522,0.00315439,97143.0,97142.0,0.2058743]
[1739392776722,0.00015439,97143.0,97142.0,0.2088743]
[1739392777418,0.00015439,97143.0,97142.0,0.2058743]
[1739392777727,0.00015439,97143.0,97142.0,0.2088743]
[1739392779116,0.00315439,97143.0,97142.0,0.2058743]
[1739392779828,0.00315439,97143.0,97138.0,0.3608]
[1739392779829,0.2058763,97142.0,97138.0,0.3608]
[1739392780717,0.2048763,97142.0,97138.0,0.3608]
[1739392781525,0.2058763,97142.0,97138.0,0.3608]
[1739392781725,0.2058763,97142.0,97139.0,0.20588]
[1739392782220,0.2108763,97142.0,97139.0,0.20588]
[1739392782421,0.2108763,97142.0,97140.0,0.2058784]
[1739392782728,0.2108763,97142.0,97138.0,0.3618]
[1739392782729,0.2108763,97142.0,97141.0,0.2058764]
[1739392783029,0.2098763,97142.0,97141.0,0.2058764]
[1739392783432,0.2088763,97142.0,97141.0,0.2058764]
[1739392783724,0.2118763,97142.0,97141.0,0.2058764]
[1739392784632,0.008,97142.0,97141.0,0.2058764]
[1739392785135,0.001,97142.0,97141.0,0.2058764]
[1739392785323,0.2138742,97142.0,97141.0,0.2068764]
[1739392785728,0.2138742,97142.0,97141.0,0.001]
[1739392786034,0.2108742,97142.0,97141.0,0.001]
[1739392786729,0.005,97142.0,97141.0,0.001]
[1739392786929,0.009,97142.0,97141.0,0.001]
[1739392787321,0.008,97142.0,97141.0,0.001]
[1739392788433,0.01,97142.0,97141.0,0.001]
[1739392789427,0.011,97142.0,97141.0,0.001]
[1739392790026,0.009,97142.0,97141.0,0.001]
[1739392790227,0.011,97142.0,97141.0,0.001]
[1739392793529,0.011,97142.0,97141.0,0.0407]
[1739392796137,0.011,97142.0,97141.0,1.5407]
[1739392796728,0.0411,97159.0,97158.0,0.2058404]
[1739392796934,0.2058212,97168.0,97155.0,0.3608]
[1739392797134,0.2058212,97168.0,97165.0,0.2058248]
[1739392797335,0.1182,97174.0,97165.0,0.2058248]
[1739392797535,0.2058097,97173.0,97167.0,0.2058212]
[1739392798043,0.2058097,97173.0,97168.0,0.2058188]
[1739392798533,0.2058097,97173.0,97163.0,0.3608]
[1739392798730,0.12866594,97174.0,97173.0,0.2058086]
[1739392800438,0.14966594,97174.0,97173.0,0.2068086]
[1739392800938,0.07246594,97174.0,97173.0,0.2068086]
[1739392801137,0.062,97174.0,97173.0,0.2068086]
[1739392802034,0.021,97174.0,97173.0,0.2068086]
[1739392802536,0.021,97174.0,97173.0,0.5676086]
[1739392802742,0.022,97174.0,97173.0,0.5676086]
[1739392803334,0.022,97174.0,97173.0,2.0676086]
[1739392806346,0.00015439,97180.0,97178.0,0.205798]
[1739392807046,1e-08,97180.0,97178.0,0.205798]
[1739392807542,1e-08,97180.0,97178.0,0.206798]
[1739392807740,1e-08,97180.0,97179.0,0.2057959]
[1739392808338,0.0416,97198.0,97197.0,0.2057578]
[1739392808544,0.0416,97198.0,97197.0,0.5665578]
[1739392809741,0.00015439,97207.0,97205.0,0.2057388]
[1739392809945,0.00015439,97207.0,97206.0,0.2057387]
[1739392810136,0.01045746,97207.0,97206.0,0.2057387]
[1739392810338,0.00015439,97207.0,97206.0,0.2057387]
[1739392811240,0.00015439,97207.0,97206.0,0.2067387]
[1739392812147,0.00015439,97207.0,97206.0,0.001]
[1739392812148,0.56669099,97207.0,97206.0,0.001]
[1739392813047,0.20589099,97207.0,97206.0,0.002]
[1739392815042,0.00015439,97207.0,97206.0,0.002]
[1739392815250,0.00015439,97207.0,97206.0,0.2077387]
[1739392818347,1.26852755,97244.0,97206.0,0.002]
[1739392818546,0.0377,97230.0,97229.0,0.20569]
[1739392819043,0.0377,97230.0,97229.0,1.70569]
[1739392820952,0.0377,97230.0,97229.0,0.20569]
[1739392822444,0.0377,97230.0,97220.0,0.00015431]
[1739392822652,0.205707,97221.0,97220.0,0.00015431]
[1739392823850,0.0815,97225.0,97220.0,0.00115431]
[1739392824155,0.0815,97225.0,97220.0,0.20686341]
[1739392824353,0.0815,97225.0,97221.0,0.2057057]
[1739392824551,0.0815,97225.0,97222.0,0.2057035]
[1739392825150,0.0815,97225.0,97220.0,0.00115431]
[1739392825350,0.0815,97225.0,97223.0,0.2057026]
[1739392825754,0.0815,97225.0,97220.0,0.00115431]
[1739392825952,0.205707,97221.0,97220.0,0.00115431]
[1739392826347,0.205707,97221.0,97220.0,0.00215431]
[1739392826956,0.205707,97221.0,97220.0,0.00115431]
[1739392828265,0.205707,97221.0,97220.0,0.20586341]
[1739392828465,0.0815,97225.0,97224.0,0.2057006]
[1739392828857,0.0413,97225.0,97224.0,0.2057006]
[1739392829761,0.0377,97230.0,97224.0,0.3608]
[1739392830061,0.0377,97230.0,97229.0,0.2056901]
[1739392830278,0.04768058,97230.0,97229.0,0.2056901]
[1739392830478,0.0377,97230.0,97229.0,0.2056901]
[1739392830672,0.0389,97237.0,97224.0,0.3608]
[1739392830869,0.0389,97237.0,97236.0,0.2056752]
[1739392831286,0.2056792,97235.0,97232.0,0.2056832]
[1739392831582,0.3608,97233.0,97220.0,0.00015431]
[1739392831779,0.12164447,97230.0,97222.0,0.2057045]
[1739392832097,0.205689,97230.0,97220.0,0.00015431]
[1739392832879,0.205689,97230.0,97227.0,0.2056942]
[1739392833082,0.3608,97234.0,97224.0,0.2057003]
[1739392833278,0.3608,97234.0,97220.0,0.00115431]
[1739392833483,0.2057033,97223.0,97220.0,0.00115431]
[1739392833776,0.2057033,97223.0,97220.0,0.00215431]
[1739392833981,0.2057033,97223.0,97220.0,0.20786341]
[1739392834686,0.2057033,97223.0,97220.0,0.20686341]
[1739392835882,0.2057033,97223.0,97221.0,0.2057068]
[1739392836287,0.0354,97225.0,97220.0,0.00115431]
[1739392836483,0.0354,97225.0,97224.0,0.2057006]
[1739392837373,0.2410985,97225.0,97224.0,0.2057006]
[1739392839679,0.25136659,97225.0,97224.0,0.2057006]
[1739392840889,0.01026809,97225.0,97224.0,0.5665006]
[1739392841089,0.2056872,97231.0,97224.0,0.3608]
[1739392841383,0.2056872,97231.0,97230.0,0.2056879]
[1739392841582,0.3608,97234.0,97233.0,0.2056816]
[1739392841888,0.37097124,97234.0,97233.0,0.2056816]
[1739392842190,0.57665074,97234.0,97233.0,0.2056816]
[1739392842376,0.57665074,97234.0,97221.0,0.0893267]
[1739392842377,0.2056905,97229.0,97227.0,0.2056934]
[1739392842575,0.2056905,97229.0,97220.0,0.00015431]
[1739392842787,0.2056905,97229.0,97228.0,0.2056922]
[1739392842982,0.37097124,97234.0,97223.0,0.2057009]
[1739392843179,0.2057006,97224.0,97223.0,0.2057009]
[1739392845090,0.3608,97226.0,97225.0,0.2056985]
[1739392847490,0.5664964,97226.0,97225.0,0.2056985]
[1739392848282,0.3608,97226.0,97225.0,0.2056985]
[1739392849082,0.5664964,97226.0,97225.0,0.2056985]
[1739392850986,0.205707,97221.0,97220.0,0.20586191]
[1739392852684,0.205707,97221.0,97220.0,0.20686191]
[1739392853287,0.205707,97221.0,97220.0,0.20586191]
[1739392854705,0.2161855,97221.0,97220.0,0.20586191]
[1739392854997,0.0104785,97221.0,97220.0,0.20586191]
[1739392855294,0.3608,97225.0,97224.0,0.2057006]
[1739392855696,0.5664985,97225.0,97224.0,0.2057006]
[1739392857189,0.5664985,97225.0,97224.0,0.2067006]
[1739392857890,0.57674184,97225.0,97224.0,0.2067006]
[1739392859499,0.57674184,97225.0,97224.0,0.2057006]
[1739392859794,0.2056813,97234.0,97224.0,0.2057006]
[1739392860000,0.2056969,97226.0,97220.0,0.00015431]
[1739392860193,0.2056985,97225.0,97224.0,0.2056999]
[1739392860499,0.2057069,97221.0,97220.0,0.00015431]
[1739392860701,0.3608,97222.0,97201.0,0.0371]
[1739392861006,0.5665218,97214.0,97208.0,0.2057343]
[1739392862199,0.5665218,97214.0,97204.0,0.00015431]
[1739392863703,0.5665218,97214.0,97210.0,0.20573]
[1739392864395,0.2057218,97214.0,97210.0,0.20573]
[1739392864598,0.205698,97226.0,97225.0,0.2056985]
[1739392866090,0.21613327,97226.0,97225.0,0.2056985]
[1739392868595,0.01043527,97226.0,97225.0,0.2056985]
[1739392868795,0.3608,97232.0,97217.0,0.0759]
[1739392869099,0.3608,97232.0,97231.0,0.2056858]
[1739392870892,0.57656218,97232.0,97231.0,0.2056858]
[1739392872300,0.37087848,97232.0,97231.0,0.2056858]
[1739392873706,0.57656218,97232.0,97231.0,0.2056858]
[1739392874106,0.37087848,97232.0,97231.0,0.2056858]
[1739392876311,0.37087848,97232.0,97231.0,0.2056858]
[1739392876496,0.37087848,97232.0,97231.0,0.2066858]
[1739392876903,0.37087848,97232.0,97231.0,0.2056858]
[1739392877103,0.37087848,97232.0,97231.0,0.2086858]
[1739392879007,0.37087848,97232.0,97231.0,0.2096858]
[1739392879502,0.37087848,97232.0,97231.0,0.2076858]
[1739392879813,0.37087848,97232.0,97231.0,0.2106858]
[1739392880314,0.37087848,97232.0,97231.0,0.2066858]
[1739392880813,0.57656218,97232.0,97231.0,0.001]
[1739392882407,0.2057065,97224.0,97223.0,0.2057026]
[1739392883011,0.5665065,97224.0,97223.0,0.2057026]
[1739392886011,0.2057065,97224.0,97223.0,0.2057026]
[1739392886206,0.5665065,97224.0,97223.0,0.2057026]
[1739392887419,0.2057175,97219.0,97218.0,0.2057117]
[1739392888513,0.2037218,97214.0,97207.0,0.0394]
[1739392888706,0.0403,97218.0,97207.0,0.0394]
[1739392888910,0.2460144,97218.0,97217.0,0.2057154]
[1739392889312,0.0403,97218.0,97217.0,0.2057154]
[1739392890021,0.0383,97218.0,97217.0,0.2057154]
[1739392890318,0.0383,97218.0,97217.0,0.2077154]
[1739392890917,0.0383,97218.0,97217.0,0.2127154]
[1739392891221,0.25448931,97218.0,97217.0,0.2127154]
[1739392891720,0.25448931,97218.0,97217.0,0.2137154]
[1739392892114,0.04877601,97218.0,97217.0,0.2137154]
[1739392892315,0.04877601,97218.0,97217.0,0.2127154]
[1739392893418,0.04877601,97218.0,97217.0,0.2107154]
[1739392894118,0.04877601,97218.0,97217.0,0.2087154]
[1739392894331,0.04877601,97218.0,97217.0,0.2127154]
[1739392895820,0.04877601,97218.0,97217.0,0.2117154]
[1739392896426,0.04877601,97218.0,97217.0,0.2077154]
[1739392896625,0.04877601,97218.0,97217.0,0.2107154]
[1739392897715,0.40957601,97218.0,97217.0,0.2167154]
[1739392898228,0.04877601,97218.0,97217.0,0.2167154]
[1739392899118,0.04877601,97218.0,97217.0,0.2177154]
[1739392899323,0.04877601,97218.0,97217.0,0.2117154]
[1739392899931,0.04877601,97218.0,97217.0,0.2107154]
[1739392901330,0.25448931,97218.0,97217.0,0.2107154]
[1739392902332,0.25448931,97218.0,97217.0,0.005]
[1739392904537,0.25448931,97218.0,97217.0,0.2107154]
[1739392906339,0.25448931,97218.0,97217.0,0.005]
[1739392910939,0.2057556,97198.0,97190.0,0.2057721]
[1739392911137,0.2057853,97186.0,97185.0,0.2057823]
[1739392912035,0.3608,97188.0,97171.0,0.0776]
[1739392912243,0.2058014,97177.0,97176.0,0.20595131]
[1739392912443,0.1988014,97177.0,97176.0,0.20595131]
[1739392912835,0.1898014,97177.0,97176.0,0.20595131]
[1739392913643,0.1898014,97177.0,97176.0,0.21895131]
[1739392914545,0.1898014,97177.0,97176.0,0.22395131]
[1739392914938,0.1908014,97177.0,97176.0,0.21895131]
[1739392915248,0.21192448,97177.0,97176.0,0.20695131]
[1739392915546,0.21092448,97177.0,97176.0,0.20695131]
[1739392916246,0.21192448,97177.0,97176.0,0.20695131]
[1739392916746,0.20492448,97177.0,97176.0,0.20595131]
[1739392917344,0.20492448,97177.0,97176.0,0.00015431]
[1739392918249,0.20892448,97177.0,97176.0,0.00115431]
[1739392918747,0.20892448,97177.0,97176.0,0.20695651]
[1739392918949,0.02112308,97177.0,97176.0,0.20695651]
[1739392919147,0.02412308,97177.0,97176.0,0.20695651]
[1739392919546,0.02412308,97177.0,97176.0,1.70695651]
[1739392919945,0.02212308,97177.0,97176.0,1.70695651]
[1739392920245,0.012,97177.0,97176.0,1.70695651]
[1739392921249,0.2158001,97177.0,97176.0,1.50315431]
[1739392921452,0.2098001,97177.0,97176.0,1.50215431]
[1739392921839,0.22108705,97177.0,97176.0,1.50015431]
[1739392922039,0.22108705,97177.0,97176.0,0.00015431]
[1739392922247,0.2058234,97166.0,97154.0,0.205847]
[1739392922446,0.5666234,97166.0,97154.0,0.205847]
[1739392922942,0.5656234,97166.0,97154.0,0.205847]
[1739392923748,0.3608,97166.0,97143.0,0.0371]
[1739392924048,0.3608,97147.0,97146.0,0.2058658]
[1739392925149,0.3588,97147.0,97146.0,0.2058658]
[1739392925952,0.3608,97147.0,97146.0,0.2228658]
[1739392926749,0.5666636,97147.0,97146.0,0.017]
[1739392928760,0.2058881,97136.0,97133.0,0.2058924]
[1739392928962,0.5666881,97136.0,97133.0,0.2058924]
[1739392929152,0.3608,97136.0,97133.0,0.2058924]
[1739392929347,0.2058906,97135.0,97133.0,0.2058924]
[1739392929756,0.3608,97136.0,97131.0,0.0397]
[1739392929966,0.3618,97136.0,97135.0,0.2058891]
[1739392931053,0.3628,97136.0,97135.0,0.2058891]
[1739392931453,0.3618,97136.0,97135.0,0.2058891]
[1739392931653,0.3618,97136.0,97135.0,0.2158891]
[1739392932055,0.3628,97136.0,97135.0,0.2168891]
[1739392932359,0.001,97136.0,97135.0,0.2068891]
[1739392932660,0.007,97136.0,97135.0,0.2058891]
[1739392933061,0.007,97136.0,97135.0,1.7058891]
[1739392933260,0.00015439,97144.0,97135.0,1.5]
[1739392933452,0.00015439,97144.0,97143.0,0.5666721]
[1739392935462,0.00015439,97144.0,97143.0,0.5676721]